Cogmind - Beta 11.1 @@@ ROGUE MODE // 2022.04.24 @ 01:10:34 Player: Lyra Result: Destroyed by S-27 Virus with Autogun Performance ------------- Evolutions (5) 2500 Regions Visited (15) 3000 Robots Destroyed (176) 880 Value Destroyed (6740) 6740 Prototype IDs (15) 300 Alien Tech Used (0) 0 Bonus (2678) 2678 TOTAL SCORE: 16098 Bonus ------- High Alert Combat Kills 745 Follower Combat Kills 440 Entered Garrisons 200 Used RIF Installer 500 Entered DSFs 500 Met Data Miner 300 Friendly Fire -7 Cogmind --------- Core Integrity 0/1000 Matter 290/300 Energy 53/100 System Corruption 0% Temperature Cool (0) Movement Core (100) Ox1 Location -5/Upper Caves Parts ------- > --- POWER (1) -------- (None) > --- PROPULSION (5) --- (None) > --- UTILITY (9) ------ Improved Signal Interpreter Graphene Brace > --- WEAPON (2) ------- Beamcaster > --- INVENTORY (5) ---- Huge Storage Unit Compact Battery (200) Autogun Peak State ------------ > --- POWER ------------ Light Fission Core > --- PROPULSION ------- Combat Airjet Combat Airjet Combat Airjet Combat Airjet Combat Airjet > --- UTILITY ---------- Huge Storage Unit Improved Signal Interpreter Makeshift Armor Plating Medium Reactive Plating Graphene Brace Thermal Shield Authchip [Armor] > --- WEAPON ----------- Magnetic Acceleration Cannon Magnetic Acceleration Cannon > --- INVENTORY -------- Light Deuterium Engine Disposable Heat Sink Coolant Injector Advanced Terrain Scanner Transport Network Coupler Hardened Heavy Armor Plating Makeshift Armor Plating Reactive Plating Authchip [R/Combat] Authchip [R/Combat] Authchip [R/Combat] Authchip [R/Combat] Lightning Gun Lightning Gun Gatling Laser Gatling Laser Heavy Particle Cannon Heavy Particle Cannon Heavy Plasma Cannon Magnetic Acceleration Cannon Magnetic Acceleration Cannon Improved Grenade Launcher Dirty Datajack Remote Datajack [Rating: 77] Favorites ----------- Power Light Deuterium Engine Engine Light Deuterium Engine Power Core Nuclear Core Propulsion Armored Treads Treads Armored Treads Leg Improved Carbon-fiber Leg Wheel Wheel Hover Unit Combat Airjet Utility Huge Storage Unit Device Improved Sensor Array Storage Huge Storage Unit Processor Improved Signal Interpreter Hackware Relay Coupler [Grunt] Protection Hardened Heavy Armor Plating Weapon Advanced Assault Cannon Energy Gun Heavy Laser Energy Cannon Advanced Beam Cannon Ballistic Gun Autogun Ballistic Cannon Advanced Assault Cannon Launcher Rocket Launcher Special Weapon Remote Datajack Impact Weapon Impact Mace Special Melee Weapon Improved Datajack Build | -11 -10 -9 -9 -8 -8 -8 -7 -7 -7 -7 -6 -6 -6 -5 -5 ------- Run | Scr Mat Mat Min Mat Gar Mat Fac Low Low Dat Pro Fac DSF Fac Upp Slots Evolved 10 | . . 2 . 2 . . 2 . . . . 2 . 2 . Power . | . . . . . . . . . . . . . . . . Propulsion 3 | . . . . 2 . . 1 . . . . . . . . Utility 7 | . . 2 . . . . 1 . . . . 2 . 2 . Weapon . | . . . . . . . . . . . . . . . . Parts Attached 245 | 6 6 17 14 57 9 37 43 . 1 2 7 9 15 9 13 Power 15 | 1 . 3 2 2 . 2 2 . . . . 1 . 1 1 Engine 12 | 1 . 3 2 1 . 2 2 . . . . . . 1 . Core 3 | . . . . 1 . . . . . . . 1 . . 1 Reactor . | . . . . . . . . . . . . . . . . Propulsion 83 | 2 2 6 3 27 3 14 10 . . . . 1 5 5 5 Treads 27 | 2 . 6 3 4 . 2 8 . . . . . . . 2 Leg 27 | . . . . 16 3 7 1 . . . . . . . . Wheel 20 | . 2 . . 7 . 5 1 . . . . 1 . 1 3 Hover 9 | . . . . . . . . . . . . . 5 4 . Flight . | . . . . . . . . . . . . . . . . Utility 73 | 1 3 3 5 10 2 9 18 . 1 . 6 5 6 2 2 Device 40 | . 2 1 3 6 . 5 10 . 1 . 5 4 1 1 1 Storage 5 | 1 1 . . 2 . . . . . . . . . . 1 Processor 5 | . . 1 . . . . 2 . . . . 1 . 1 . Hackware 7 | . . . . . 1 2 1 . . . . . 3 . . Protection 16 | . . 1 2 2 1 2 5 . . . 1 . 2 . . Artifact . | . . . . . . . . . . . . . . . . Weapon 74 | 2 1 5 4 18 4 12 13 . . 2 1 2 4 1 5 Energy Gun 18 | 1 1 1 . 7 2 3 2 . . . . . . . 1 Energy Cannon 7 | . . 2 3 1 . . . . . . . . . 1 . Ballistic Gun 9 | 1 . 2 1 1 . . . . . . . . . . 4 Ballistic Cannon 28 | . . . . 7 . 5 9 . . 2 1 2 2 . . Launcher 3 | . . . . 2 1 . . . . . . . . . . Special Weapon 3 | . . . . . . 1 . . . . . . 2 . . Impact Weapon 1 | . . . . . . . 1 . . . . . . . . Slashing Weapon . | . . . . . . . . . . . . . . . . Piercing Weapon . | . . . . . . . . . . . . . . . . Special Melee Weapon 5 | . . . . . 1 3 1 . . . . . . . . Unidentified Prototypes 5 | . . 2 . 1 . . 2 . . . . . . . . Parts Lost 76 | . 1 3 12 12 1 8 8 . . . 3 . 7 6 15 Power 9 | . . 1 2 1 . 2 1 . . . . . . 1 1 Propulsion 31 | . 1 1 3 7 . 3 3 . . . 2 . 2 2 7 Utility 22 | . . . 4 3 1 1 2 . . . 1 . 4 2 4 Weapon 14 | . . 1 3 1 . 2 2 . . . . . 1 1 3 Highest Loss Streak 7 | . 1 2 7 3 1 7 2 . . . 3 . 3 5 6 To Critical Strikes 1 | . . 1 . . . . . . . . . . . . . Average Slot Usage (%) 86 | . 98 97 91 84 89 85 84 100 100 84 96 87 79 56 33 Engine 6 | . 14 10 9 7 . 1 6 7 7 7 7 2 . . . Core 1 | . . . . 1 9 4 . . . . . 3 5 . 2 Treads 20 | . 21 21 20 3 . 2 32 38 38 38 34 20 7 . 2 Leg 8 | . . . . 29 35 24 . . . . . . . . . Wheel 1 | . 6 . . 1 . 8 1 . . . . 2 4 3 1 Device 12 | . 12 19 18 12 5 5 7 15 15 15 18 24 14 14 6 Storage 7 | . 14 11 11 9 9 9 7 7 7 7 7 6 5 . . Processor 4 | . . 9 . . . . 7 7 7 7 7 6 6 5 7 Protection 6 | . . 2 9 7 8 8 6 7 7 7 4 6 13 3 . Energy Gun 3 | . 25 10 . 3 16 8 . . . . . . . . . Energy Cannon 2 | . . 7 20 . . . . . . . . . . 3 . Ballistic Cannon 7 | . . . . 7 . 8 9 15 15 . 15 13 9 . . Naked Turns . | . . . . . . . . . . . . . . . . Heaviest Build 136 | 12 28 39 39 128 116 119 125 125 125 122 122 114 136 31 84 Greatest Support 110 | 40 40 43 43 74 69 66 110 103 103 103 103 60 60 30 70 Greatest Overweight (x) 42 | 1 1 . 1 11 3 6 11 1 1 1 1 4 42 1 3 Average Overweight (x) 1 | . . . . . 1 2 2 1 1 1 . 2 4 . . Largest Inventory Capacity 25 | 8 15 15 15 25 25 25 25 25 25 25 25 25 25 5 25 Average Capacity 21 | 6 12 15 15 22 25 25 25 25 25 25 25 25 24 5 8 Most Carried 25 | 4 8 15 15 25 25 25 25 25 25 25 25 25 25 5 5 Average Carried 20 | 2 6 12 14 21 24 23 24 23 24 25 24 23 23 3 2 Final Capacity 25 | 8 15 15 15 25 25 25 25 25 25 25 25 25 5 5 5 Final Carried 25 | 4 8 15 15 25 25 25 20 25 25 25 24 25 5 5 3 Class Distribution -------------------- 56% | Scavenger-Mutant 39% | Mutant 4% | Bothacker-Mutant Dominant Class ---------------- Mutant | -10/Materials Mutant | -9/Materials Scavenger-Mutant | -9/Mines Scavenger-Mutant | -8/Materials Scavenger-Mutant | -8/Garrison Bothacker-Mutant | -8/Materials Scavenger-Mutant | -7/Factory Mutant | -7/Lower Caves Scavenger-Mutant | -7/Lower Caves Scavenger-Mutant | -7/Data Miner Scavenger-Mutant | -6/Proximity Caves Mutant | -6/Factory Scavenger-Mutant | -6/DSF Mutant | -5/Factory Scavenger-Mutant | -5/Upper Caves Resources | -11 -10 -9 -9 -8 -8 -8 -7 -7 -7 -7 -6 -6 -6 -5 -5 ----------- Run | Scr Mat Mat Min Mat Gar Mat Fac Low Low Dat Pro Fac DSF Fac Upp Matter Collected 6225 | 256 70 235 241 1381 81 382 1981 46 125 . 638 . 336 51 402 Remotely . | . . . . . . . . . . . . . . . . Salvage Created 6127 | . 351 518 283 2066 241 318 1633 . 41 . 230 . 197 51 198 Parts 317 | . 24 32 6 102 16 12 94 . 6 . 12 . 2 3 8 Haulers Intercepted 6 | . . 2 . 2 . 1 1 . . . . . . . . Recyclers Shooed 6 | . 3 . . 1 . 1 1 . . . . . . . . Parts Field Recycled 1 | . . . . . . . . . . . . . . 1 . Retrieved Matter 19 | . . . . . . . . . . . . . . 19 . Parts Self-Destructed 35 | . . . . . . . . . 6 . 21 . . . 8 Prevented . | . . . . . . . . . . . . . . . . Kills | -11 -10 -9 -9 -8 -8 -8 -7 -7 -7 -7 -6 -6 -6 -5 -5 ------- Run | Scr Mat Mat Min Mat Gar Mat Fac Low Low Dat Pro Fac DSF Fac Upp Combat Hostiles Destroyed 164 | . 10 10 14 47 8 6 46 . 3 . 8 . 5 1 6 Guns 55 | . 9 10 5 13 8 4 . . . . . . . . 6 Cannons 100 | . . . 8 29 . 2 45 . 3 . 8 . 5 . . AOE 4 | . . . . 3 . . . . . . . . . 1 . Classes Destroyed 18 | . 3 3 3 5 1 . 2 . . . . . 1 . . Worker 5 | . . . 2 2 . 1 . . . . . . . . . Builder 3 | . . . . 2 . . 1 . . . . . . . . Hauler 6 | . . 2 . 2 . 1 1 . . . . . . . . Recycler 9 | . 1 1 . 5 . . 2 . . . . . . . . Operator 1 | . . . . . . . 1 . . . . . . . . Watcher 4 | . . 1 . 1 . . 2 . . . . . . . . Swarmer 38 | . 4 4 . 8 3 . 6 . 3 . 5 . . . 5 Cutter 2 | . . . . . 2 . . . . . . . . . . Grunt 72 | . 6 4 . 25 2 5 23 . . . 3 . 3 1 . Brawler 2 | . . . . 1 . . 1 . . . . . . . . Duelist 4 | . . . . 1 1 . 2 . . . . . . . . Sentry 18 | . . 2 2 8 . 1 4 . . . . . . . 1 Demolisher 2 | . . . 2 . . . . . . . . . . . . Specialist 3 | . . . . 2 . . . . . . . . 1 . . Hunter 3 | . . . . 2 . . 1 . . . . . . . . Programmer 9 | . . . . . . . 9 . . . . . . . . Heavy 1 | . . . . . . . . . . . . . 1 . . Assembled 10 | . . . 10 . . . . . . . . . . . . Best Kill Streak 10 | . 5 10 10 8 3 3 5 . 3 . 4 . 3 1 3 Combat Bots Only 10 | . 4 8 10 8 3 3 5 . 3 . 4 . 3 1 3 Max Kills in Single Turn 2 | . 1 2 2 2 1 1 1 . 1 . 1 . 1 1 1 Gunslinging . | . . . . . . . . . . . . . . . . Exploded 2 | . . . . 2 . . . . . . . . . 1 . Melee . | . . . . . . . . . . . . . . . . Uniques/NPCs Destroyed . | . . . . . . . . . . . . . . . . Combat | -11 -10 -9 -9 -8 -8 -8 -7 -7 -7 -7 -6 -6 -6 -5 -5 -------- Run | Scr Mat Mat Min Mat Gar Mat Fac Low Low Dat Pro Fac DSF Fac Upp Damage Taken 15841 | . 410 615 1325 3210 422 1265 3463 . 81 . 570 . 1194 964 2322 Core 2327 | . 32 105 99 305 6 177 280 . . . 84 . 236 344 659 Absorbed by Shields 386 | . . . . 152 . . 38 . 32 . 101 . . 63 . Redirected to Shielding 7 | . . . . 7 . . . . . . . . . . . Regen/Repaired (Parts) 78 | . . . . 78 . . . . . . . . . . . Core Remaining (%) 61 | 100 87 . 49 . . 11 . . . . 48 . 72 . . Volleys Fired 532 | . 34 31 42 148 27 26 142 . 4 . 22 . 25 3 28 Largest 2 | . 2 2 2 2 2 2 2 . 2 . 2 . 2 1 2 Hottest 138 | . 80 136 136 138 138 138 110 . 96 . 96 . 106 81 75 Shots Fired 864 | . 66 62 65 231 44 52 207 2 8 . 44 . 42 3 38 Gun 356 | . 66 54 20 95 43 35 5 . . . . . . . 38 Cannon 499 | . . 8 45 133 . 17 202 2 8 . 44 . 37 3 . Launcher 4 | . . . . 3 1 . . . . . . . . . . Special 5 | . . . . . . . . . . . . . 5 . . Kinetic 527 | . 16 25 20 121 . 17 202 2 8 . 44 . 37 . 35 Thermal 320 | . 50 37 45 107 43 35 . . . . . . . . 3 Explosive 4 | . . . . 3 1 . . . . . . . . . . Electromagnetic 8 | . . . . . . . 5 . . . . . . 3 . Robot Hit Streak 17 | . 7 15 7 16 5 14 11 3 4 . 6 . 17 4 17 Robot Miss Streak 11 | . 3 4 2 11 7 6 5 . 1 . 6 . 2 1 3 Penetration Max 1 | . . . . 1 . . 1 . . . . . . . . Secondary Targets 9 | . 2 2 . 1 1 3 . . . . . . . . . Max Gunslinging Chain 1 | . 1 1 . 1 1 1 . . . . . . . . . Shots Hit Robots 597 | . 45 39 41 175 22 36 149 1 5 . 19 . 33 2 30 Core Hits 302 | . 17 18 21 108 12 19 71 . 3 . 9 . 8 3 13 Critical Kills 2 | . 1 . 1 . . . . . . . . . . . . Critical Parts Destroyed 1 | . . . . . . . . . . . . . . . 1 Critical Strikes 35 | . 1 . 1 7 1 . 17 . . . 5 . 2 . 1 Burn 2 | . . . . 1 1 . . . . . . . . . . Meltdown 1 | . . . 1 . . . . . . . . . . . . Destroy 2 | . 1 . . . . . . . . . . . . . 1 Blast 30 | . . . . 6 . . 17 . . . 5 . 2 . . Melee Attacks 14 | . . . . . 2 6 6 . . . . . . . . Impact . | . . . . . . . . . . . . . . . . Slashing . | . . . . . . . . . . . . . . . . Piercing . | . . . . . . . . . . . . . . . . Sneak Attacks 6 | . . . . . . . 6 . . . . . . . . Combat Hostiles . | . . . . . . . . . . . . . . . . Follow-up Attacks . | . . . . . . . . . . . . . . . . Damage Inflicted 15930 | . 487 608 817 5259 422 646 5387 . 149 . 508 . 959 210 478 Guns 3833 | . 487 526 232 1228 422 372 105 . . . . . . . 461 Cannons 11453 | . . 82 570 3647 . 274 5222 . 149 . 508 . 959 42 . Explosions 599 | . . . . 375 . . 60 . . . . . . 164 . Melee . | . . . . . . . . . . . . . . . . Ramming 45 | . . . 15 9 . . . . . . . . . 4 17 Kinetic 11639 | . 102 227 232 3505 . 274 5222 . 149 . 508 . 959 . 461 Thermal 3664 | . 385 381 570 1370 422 372 . . . . . . . 164 . Explosive 435 | . . . . 375 . . 60 . . . . . . . . Electromagnetic 147 | . . . . . . . 105 . . . . . . 42 . Impact . | . . . . . . . . . . . . . . . . Slashing . | . . . . . . . . . . . . . . . . Piercing . | . . . . . . . . . . . . . . . . Highest Corruption 7 | . . . . 6 6 7 7 7 7 7 7 . . . . Average Corruption 5 | . . . . 2 6 6 4 7 7 7 7 . . . . Corruption Purged . | . . . . . . . . . . . . . . . . Corruption Blocked . | . . . . . . . . . . . . . . . . Effects 232 | . . . . 14 17 37 82 17 26 5 34 . . . . Message Errors 45 | . . . . 3 4 7 9 5 6 . 11 . . . . Matter Fused 51 | . . . . 1 4 8 24 4 4 2 4 . . . . Heat Flow Errors 37 | . . . . 2 1 8 14 2 3 2 5 . . . . Energy Discharges 34 | . . . . 3 1 1 13 1 8 1 6 . . . . Parts Rejected 4 | . . . . . 1 2 1 . . . . . . . . Data Loss (minor) 27 | . . . . 1 4 5 6 3 3 . 5 . . . . Data Loss (major) 9 | . . . . . . 2 6 . 1 . . . . . . Misfires 12 | . . . . 2 . 2 5 2 . . 1 . . . . Alerts 7 | . . . . 1 1 2 1 . 1 . 1 . . . . Weapon Failures 6 | . . . . 1 1 . 3 . . . 1 . . . . Overload Shots . | . . . . . . . . . . . . . . . . Overflow Damage 517 | . . . 5 178 . . 291 . . . 43 . . . . Projectiles 479 | . . . 5 178 . . 253 . . . 43 . . . . Explosions 38 | . . . . . . . 38 . . . . . . . . Melee . | . . . . . . . . . . . . . . . . Knockbacks 104 | . . . . 42 . 4 47 . . . 7 . 3 1 . Impact 1 | . . . . . . . . . . . . . . 1 . Kinetic 96 | . . . . 37 . 4 45 . . . 7 . 3 . . Secondary 7 | . . . . 5 . . 2 . . . . . . . . Self-Inflicted Damage 381 | . . . . . . . 318 . . . . . . 63 . Shots 5 | . . . . . . . 4 . . . . . . 1 . Rammed 15 | . . . 5 2 . . . . . . . . . 1 7 Targets Rammed 18 | . . . 6 4 . . . . . . . . . 1 7 Kicked 2 | . . . . 2 . . . . . . . . . . . Crushed 1 | . . . 1 . . . . . . . . . . . . Highest Temperature 557 | . 142 117 319 557 396 382 336 199 224 186 257 . 107 44 . Average Temperature 102 | . 41 31 72 128 124 124 92 75 76 97 66 . 40 17 . Received Heat Transfer 3940 | . 156 249 108 1170 126 306 1090 . . . 42 . 363 279 51 Effects 25 | . . . . 16 1 4 4 . . . . . . . . Shutdowns 5 | . . . . 4 . 1 . . . . . . . . . Energy Bleed 2 | . . . . 1 . . 1 . . . . . . . . Interference 9 | . . . . 5 1 . 3 . . . . . . . . Short Circuit 3 | . . . . . . 3 . . . . . . . . . Damage (minor) 2 | . . . . 2 . . . . . . . . . . . Damage (major) 4 | . . . . 4 . . . . . . . . . . . Siege Activations . | . . . . . . . . . . . . . . . . Robots Corrupted 1 | . . . . . . . 1 . . . . . . . . Combat Hostiles 1 | . . . . . . . 1 . . . . . . . . Parts Fried 1 | . . . . . . . 1 . . . . . . . . Impact Corruptions 1 | . . . . 1 . . . . . . . . . . . Robots Melted 3 | . 1 . 1 1 . . . . . . . . . . . Combat Hostiles 3 | . 1 . 1 1 . . . . . . . . . . . Parts Melted 22 | . 2 1 3 12 3 1 . . . . . . . . . Heat Transferred 7565 | . 825 818 999 3108 888 777 . . . . . . . 150 . Parts Sabotaged . | . . . . . . . . . . . . . . . . Parts Stolen . | . . . . . . . . . . . . . . . . Parts Stripped . | . . . . . . . . . . . . . . . . Power Chain Reactions 1 | . . . . . . . . . . . . . . 1 . Missiles Intercepted . | . . . . . . . . . . . . . . . . Alert | -11 -10 -9 -9 -8 -8 -8 -7 -7 -7 -7 -6 -6 -6 -5 -5 ------- Run | Scr Mat Mat Min Mat Gar Mat Fac Low Low Dat Pro Fac DSF Fac Upp Peak Influence 1052 | . 219 321 75 864 872 563 1052 . . . . 56 185 145 . Initial 561 | . . 16 46 . 561 425 145 . . . . 56 42 75 . Average 287 | . 69 118 13 344 712 387 360 . . . . 56 91 88 . Maximum Alert Level 3 | . 1 1 . 3 3 2 3 . . . . . . . . Low Security (%) 51 | 100 89 76 100 32 . . 49 . . . . 100 100 100 . Level 1 20 | . 10 23 . 30 . 58 17 . . . . . . . . Level 2 15 | . . . . 28 43 41 9 . . . . . . . . Level 3 12 | . . . . 8 56 . 22 . . . . . . . . Level 4 . | . . . . . . . . . . . . . . . . Level 5 . | . . . . . . . . . . . . . . . . High Security . | . . . . . . . . . . . . . . . . Max Security . | . . . . . . . . . . . . . . . . Sterilizations 1 | . . . . . . . . . . . . . 1 . . Squads Dispatched 37 | . 3 1 . 11 . 2 14 . . . . 1 2 3 . Investigation 8 | . 2 1 . 3 . 1 1 . . . . . . . . Extermination 9 | . . . . . . . 7 . . . . 1 . 1 . Reinforcement 16 | . 1 . . 5 . 1 5 . . . . . 2 2 . Assault 1 | . . . . . . . 1 . . . . . . . . Garrison 3 | . . . . 3 . . . . . . . . . . . Intercept . | . . . . . . . . . . . . . . . . Searches Triggered . | . . . . . . . . . . . . . . . . Construction Impeded 1 | . . . . . . . 1 . . . . . . . . Haulers Reinforced 2 | . . . . . . . 2 . . . . . . . . Active Scanning Responses . | . . . . . . . . . . . . . . . . Cargo Convoy Interrupts . | . . . . . . . . . . . . . . . . Stealth | -11 -10 -9 -9 -8 -8 -8 -7 -7 -7 -7 -6 -6 -6 -5 -5 --------- Run | Scr Mat Mat Min Mat Gar Mat Fac Low Low Dat Pro Fac DSF Fac Upp Distress Signals 7 | . 2 . 1 2 . 1 1 . . . . . . . . Communications Jammed . | . . . . . . . . . . . . . . . . Distress Signals . | . . . . . . . . . . . . . . . . Times Spotted 275 | . 16 15 24 67 12 20 71 . 3 . 13 . 13 6 15 Peak Tracking Total 20 | . 5 7 20 11 3 4 5 . 3 . 5 1 4 5 6 Tactical Retreats 16 | . . 1 2 5 3 2 1 . . . . . . . 2 Traps | -11 -10 -9 -9 -8 -8 -8 -7 -7 -7 -7 -6 -6 -6 -5 -5 ------- Run | Scr Mat Mat Min Mat Gar Mat Fac Low Low Dat Pro Fac DSF Fac Upp Traps Triggered 15 | . 1 1 . 3 2 2 2 . . . . . 2 2 . Indirectly . | . . . . . . . . . . . . . . . . Trap Hack Attempts . | . . . . . . . . . . . . . . . . Triggered . | . . . . . . . . . . . . . . . . Disarmed . | . . . . . . . . . . . . . . . . Reprogrammed . | . . . . . . . . . . . . . . . . Reused . | . . . . . . . . . . . . . . . . Traps Extracted . | . . . . . . . . . . . . . . . . Installed . | . . . . . . . . . . . . . . . . Triggered . | . . . . . . . . . . . . . . . . Machines | -11 -10 -9 -9 -8 -8 -8 -7 -7 -7 -7 -6 -6 -6 -5 -5 ---------- Run | Scr Mat Mat Min Mat Gar Mat Fac Low Low Dat Pro Fac DSF Fac Upp Machines Disabled 21 | . . 1 . 1 2 1 15 . . . . . 1 . . Max in Single Turn 5 | . . 1 . 1 1 1 5 . . . . . . . . Garrison Relay 2 | . . . . . 2 . . . . . . . . . . Machines Sabotaged . | . . . . . . . . . . . . . . . . Garrisons Compromised . | . . . . . . . . . . . . . . . . Overloaded Fab Kills . | . . . . . . . . . . . . . . . . Hacking | -11 -10 -9 -9 -8 -8 -8 -7 -7 -7 -7 -6 -6 -6 -5 -5 --------- Run | Scr Mat Mat Min Mat Gar Mat Fac Low Low Dat Pro Fac DSF Fac Upp Machines Accessed 27 | . 4 2 . 6 . 3 5 1 . 4 . 2 . . . Terminals 13 | . 3 1 . 3 . 2 3 . . . . 1 . . . Fabricators . | . . . . . . . . . . . . . . . . Repair Stations 2 | . . . . 1 . . 1 . . . . . . . . Recycling Units 4 | . 1 1 . . . 1 1 . . . . . . . . Scanalyzers 2 | . . . . 1 . . . . . . . 1 . . . Garrison Access 1 | . . . . 1 . . . . . . . . . . . Total Hacks 91 | . 13 4 . 24 . 6 9 1 . 31 . 3 . . . Successful 59 | . 6 2 . 16 . 2 . 1 . 31 . 1 . . . Failed 32 | . 7 2 . 8 . 4 9 . . . . 2 . . . Catastrophic 9 | . 3 . . 1 . 2 3 . . . . . . . . Database Lockouts . | . . . . . . . . . . . . . . . . Manual 24 | . 12 4 . 4 . 3 1 . . . . . . . . Terminals 35 | . 12 2 . 9 . 5 6 . . . . 1 . . . Fabricators . | . . . . . . . . . . . . . . . . Repair Stations 4 | . . . . 3 . . 1 . . . . . . . . Recycling Units 6 | . 1 2 . . . 1 2 . . . . . . . . Scanalyzers 12 | . . . . 10 . . . . . . . 2 . . . Garrison Access 2 | . . . . 2 . . . . . . . . . . . Terminal Hacks 42 | . 5 1 . 2 . 1 . 1 . 31 . 1 . . . Record 11 | . . . . . . . . . . 11 . . . . . Part Schematic 12 | . . . . . . . . . . 12 . . . . . Robot Schematic 5 | . . . . . . . . . . 5 . . . . . Robot Analysis 3 | . 2 1 . . . . . . . . . . . . . Prototype ID Bank 3 | . . . . . . . . . . 3 . . . . . Open Door 1 | . . . . . . . . 1 . . . . . . . Open DSF 1 | . . . . . . . . . . . . 1 . . . Branch Access Points 1 | . . . . . . 1 . . . . . . . . . Terminal Index 1 | . . . . 1 . . . . . . . . . . . Alert Level 1 | . 1 . . . . . . . . . . . . . . Unreport Threat 2 | . 2 . . . . . . . . . . . . . . Recall Investigation 1 | . . . . 1 . . . . . . . . . . . Fabricator Hacks . | . . . . . . . . . . . . . . . . Repair Station Hacks 2 | . . . . 2 . . . . . . . . . . . Scan Component 1 | . . . . 1 . . . . . . . . . . . Repair 1 | . . . . 1 . . . . . . . . . . . Recycling Unit Hacks . | . . . . . . . . . . . . . . . . Scanalyzer 10 | . . . . 10 . . . . . . . . . . . Insert Component 5 | . . . . 5 . . . . . . . . . . . Analyze 5 | . . . . 5 . . . . . . . . . . . Garrison Access Hacks 1 | . . . . 1 . . . . . . . . . . . Unlock Access 1 | . . . . 1 . . . . . . . . . . . Unauthorized Hacks 4 | . 1 1 . 1 . 1 . . . . . . . . . Terminals 1 | . . . . 1 . . . . . . . . . . . Botnet 1 | . . . . 1 . . . . . . . . . . . Fabricators . | . . . . . . . . . . . . . . . . Repair Stations . | . . . . . . . . . . . . . . . . Recycling Units 3 | . 1 1 . . . 1 . . . . . . . . . Reject 3 | . 1 1 . . . 1 . . . . . . . . . Scanalyzers . | . . . . . . . . . . . . . . . . Garrison Access . | . . . . . . . . . . . . . . . . Data Cores Recovered 1 | . . . . . . . 1 . . . . . . . . Used . | . . . . . . . . . . . . . . . . Hacking Detections 18 | . 3 2 . 5 . 2 5 . . . . 1 . . . Full Trace Events 4 | . 2 . . 1 . . 1 . . . . . . . . Feedback Events . | . . . . . . . . . . . . . . . . Feedback Blocked . | . . . . . . . . . . . . . . . . Robot Schematics Acquired 5 | . . . . . . . . . . 5 . . . . . Robots Built . | . . . . . . . . . . . . . . . . Authchips . | . . . . . . . . . . . . . . . . Time . | . . . . . . . . . . . . . . . . Total Robot Build Rating . | . . . . . . . . . . . . . . . . Part Schematics Acquired 15 | . . . . 3 . . . . . 12 . . . . . Parts Built . | . . . . . . . . . . . . . . . . Authchips . | . . . . . . . . . . . . . . . . Time . | . . . . . . . . . . . . . . . . Total Part Build Rating . | . . . . . . . . . . . . . . . . Parts Repaired 1 | . . . . 1 . . . . . . . . . . . Time 44 | . . . . 44 . . . . . . . . . . . Parts Recycled . | . . . . . . . . . . . . . . . . Recycled Matter . | . . . . . . . . . . . . . . . . Retrieved Matter . | . . . . . . . . . . . . . . . . Retrieved Components . | . . . . . . . . . . . . . . . . Parts Scanalyzed 5 | . . . . 5 . . . . . . . . . . . Part Schematics Acquired 3 | . . . . 3 . . . . . . . . . . . Parts Damaged . | . . . . . . . . . . . . . . . . Bothacking | -11 -10 -9 -9 -8 -8 -8 -7 -7 -7 -7 -6 -6 -6 -5 -5 ------------ Run | Scr Mat Mat Min Mat Gar Mat Fac Low Low Dat Pro Fac DSF Fac Upp Used RIF Installer 1 | . . . . . 1 . . . . . . . . . . Robots Hacked 10 | . . . . . 2 4 1 . . . . . 3 . . Non-combat 1 | . . . . . . . 1 . . . . . . . . Combat 9 | . . . . . 2 4 . . . . . . 3 . . Robot Hacks Applied 15 | . . . . . 2 4 6 . . . . . 3 . . purge_threat 2 | . . . . . . . 2 . . . . . . . . find_terminals 1 | . . . . . . . 1 . . . . . . . . disarm_traps 1 | . . . . . . . 1 . . . . . . . . block_reporting 1 | . . . . . . . 1 . . . . . . . . clear_recycling 1 | . . . . . . . 1 . . . . . . . . find_garrison 1 | . . . . . . 1 . . . . . . . . . reboot_system 1 | . . . . . . . . . . . . . 1 . . overwrite_iff 2 | . . . . . 2 . . . . . . . . . . formatsys_high 5 | . . . . . . 3 . . . . . . 2 . . Relay Couplers Released 9 | . . . . . 9 . . . . . . . . . . Machine Destruction 9 | . . . . . 9 . . . . . . . . . . Attached 6 | . . . . . 1 2 1 . . . . . 2 . . Fabnet Peak Effective % . | . . . . . . . . . . . . . . . . Robots Rewired . | . . . . . . . . . . . . . . . . Allies Hacked . | . . . . . . . . . . . . . . . . Hacks Repelled . | . . . . . . . . . . . . . . . . Allies | -11 -10 -9 -9 -8 -8 -8 -7 -7 -7 -7 -6 -6 -6 -5 -5 -------- Run | Scr Mat Mat Min Mat Gar Mat Fac Low Low Dat Pro Fac DSF Fac Upp Total Allies 11 | . . . 3 . 2 3 . . . . 1 . 2 . . Largest Group 3 | . . . 3 3 1 1 1 . . . 1 . 1 . . Highest-Rated Group 96 | . . . 74 74 16 90 90 . . . 96 . 43 . . Highest-Rated Ally 96 | . . . 31 31 16 90 90 . . . 96 . 43 . . Total Orders . | . . . . . . . . . . . . . . . . Ally Attacks 79 | . . . . 19 7 18 5 . . . 10 . 20 . . Total Damage 2059 | . . . . 269 43 282 232 . . . 423 . 810 . . Kills 13 | . . . . 2 . 1 2 . . . 5 . 3 . . Allies Corrupted . | . . . . . . . . . . . . . . . . Allies Melted . | . . . . . . . . . . . . . . . . Intel | -11 -10 -9 -9 -8 -8 -8 -7 -7 -7 -7 -6 -6 -6 -5 -5 ------- Run | Scr Mat Mat Min Mat Gar Mat Fac Low Low Dat Pro Fac DSF Fac Upp Robot Analysis Total 3 | . 2 1 . . . . . . . . . . . . . Derelict Logs Recovered 5 | . . . 1 . . . . . 1 . 2 . . . 1 Drone Launches . | . . . . . . . . . . . . . . . . Drone Recoveries . | . . . . . . . . . . . . . . . . Exploration | -11 -10 -9 -9 -8 -8 -8 -7 -7 -7 -7 -6 -6 -6 -5 -5 ------------- Run | Scr Mat Mat Min Mat Gar Mat Fac Low Low Dat Pro Fac DSF Fac Upp Turns Passed 15452 | 69 635 538 1289 2613 544 1173 4063 802 961 219 1091 306 340 295 514 Spaces Moved 6690 | 43 311 253 663 1044 222 558 1482 327 388 89 472 141 102 209 386 Core 252 | 13 . . . 1 . . . . . . . . 12 . 226 Treads 3862 | 30 257 245 663 73 . . 1205 327 388 89 472 72 . . 41 Legs 1386 | . . . . 892 222 272 . . . . . . . . . Wheels 947 | . 54 8 . 78 . 286 277 . . . . 69 85 . 90 Hover 243 | . . . . . . . . . . . . . 5 209 29 Flight . | . . . . . . . . . . . . . . . . Fastest Speed 50 | 50 100 100 160 86 190 135 150 244 244 244 164 145 100 58 50 Average Speed 193 | 131 167 158 166 185 191 175 236 244 244 244 203 202 197 103 103 Slowest Speed 2150 | 160 240 160 240 600 330 263 250 244 244 244 244 243 2150 150 240 Overloaded Moves . | . . . . . . . . . . . . . . . . Propulsion Burnouts . | . . . . . . . . . . . . . . . . Robots Hopped . | . . . . . . . . . . . . . . . . Cave-ins Triggered . | . . . . . . . . . . . . . . . . Exploration Rate (%) 49 | 4 66 31 98 72 45 55 37 52 66 68 66 4 67 8 50 Regions Visited 15 Branch Regions 6 Pre-discovered Areas 2 | . . . . . . . . . 1 1 . . . . . Known Exits Taken 7 | . . . . 1 . . 1 1 1 1 1 1 . . . Unknown Exits Taken 6 | 1 1 1 1 . . 1 . . . . . . . 1 . Scrap Searched 6 | . . . 2 . . . . . . . 3 . . . 1 Spaces Dug 10 | . . . . 2 8 . . . . . . . . . . Terrain Destroyed 157 | . . . 3 47 8 . 79 2 1 . 13 . . 4 . Melee . | . . . . . . . . . . . . . . . . Projectile 79 | . . . 3 21 . . 39 2 1 . 13 . . . . AOE 78 | . . . . 26 8 . 40 . . . . . . 4 . Terrain Rammed . | . . . . . . . . . . . . . . . . Walls Destroyed . | . . . . . . . . . . . . . . . . Machines Disabled . | . . . . . . . . . . . . . . . . Actions | -11 -10 -9 -9 -8 -8 -8 -7 -7 -7 -7 -6 -6 -6 -5 -5 --------- Run | Scr Mat Mat Min Mat Gar Mat Fac Low Low Dat Pro Fac DSF Fac Upp Total 8259 | 53 361 329 774 1471 295 696 1804 333 395 92 561 162 205 284 444 Wait 388 | . 6 . 35 129 13 41 58 . . . 54 . 15 32 5 Move 6674 | 42 310 252 662 1043 220 557 1481 326 387 88 471 140 101 208 386 Hop . | . . . . . . . . . . . . . . . . Pick Up 185 | 5 4 18 13 49 8 14 36 6 1 . 1 6 12 9 3 Fast Attach 66 | 5 2 3 2 8 2 8 8 . . 2 4 4 6 3 9 Attach 86 | 1 1 5 10 22 2 11 18 . . . 1 2 3 6 4 Detach 7 | . . . . 5 . 1 . . . . . . . . 1 Swap 94 | . 3 9 2 27 5 18 18 . 1 . 2 3 6 . . Drop 148 | . 1 11 2 36 5 14 35 1 1 2 6 7 21 5 1 Fire 532 | . 34 31 42 148 27 26 142 . 4 . 22 . 25 3 28 Melee 14 | . . . . . 2 6 6 . . . . . . . . Ram 2 | . . . . . . . . . . . . . . 1 1 Kick 2 | . . . . 2 . . . . . . . . . . . Crush 14 | . . . 6 2 . . . . . . . . . . 6 Escape Stasis 45 | . . . . . 10 . 2 . . . . . 16 17 . Rewire 2 | . . . . . 1 . . . 1 . . . . . . Trap . | . . . . . . . . . . . . . . . . Miscellaneous . | . . . . . . . . . . . . . . . . Route ------- -11/Scrapyard -10/Materials (discovered 3 exits: *Mat x2 / [*Min]) -9/Materials -9/Mines (discovered 2 exits: *Mat x2) -8/Materials (discovered 2 exits: *Fac / Gar) -8/Garrison -8/Materials (discovered 2 exits: *Fac x2) -7/Factory (discovered 2 exits: *Fac / *Low) -7/Lower Caves -7/Lower Caves -7/Data Miner -6/Proximity Caves -6/Factory (discovered 3 exits: Fac x2 / DSF) -6/DSF -5/Factory -5/Upper Caves History --------- Turn | Location | Event 31 | -11/Scrapyard | Discovered new exit (range 16) 70 | -11/Scrapyard | Entered Materials 328 | -10/Materials | Build established: Mutant 335 | -10/Materials | Discovered new exit (range 9) 381 | -10/Materials | Discovered new exit (range 15) 601 | -10/Materials | Discovered new exit (range 14) 705 | -10/Materials | Entered another Materials area 705 | -9/Materials | Evolved 2 slots: Utility x2 1033 | -9/Materials | Destroyed 8 combat bots 1203 | -9/Materials | Discovered new exit (range 8) 1243 | -9/Materials | Entered Mines 1295 | -9/Mines | Assembled infested the area 1300 | -9/Mines | Assisted by a Guerilla fighting off Assembled 1328 | -9/Mines | Met a Derelict bent on vengeance 1367 | -9/Mines | Lost 3 parts (1p1n1u) 1420 | -9/Mines | Destroyed 10 combat bots 1438 | -9/Mines | Build established: Scavenger-Mutant 1520 | -9/Mines | Core integrity fell below 50% 1547 | -9/Mines | Lost 7 parts (1p1n2u3w) 1600 | -9/Mines | Learned Materials garrison access intel 1629 | -9/Mines | Joined a pair of Derelicts in attacking an 0b10 outpost 2347 | -9/Mines | Discovered new exit (range 4) 2350 | -9/Mines | Received a Mining Laser from a helpful Derelict 2449 | -9/Mines | Discovered new exit (range 6) 2532 | -9/Mines | Entered Materials 2532 | -8/Materials | Accompanied by 3 allies 2532 | -8/Materials | Evolved 2 slots: Propulsion x2 2533 | -8/Materials | Loaded intel: 1 garrison access location 2537 | -8/Materials | Led the pair of lost Derelicts to an unsafe place 3144 | -8/Materials | Lost 3 parts (2n1u) 3839 | -8/Materials | Discovered new exit (range 11) 4645 | -8/Materials | Lost 3 parts (1p1u1w) 4656 | -8/Materials | Core integrity fell below 50% 4728 | -8/Materials | Destroyed 8 combat bots 4842 | -8/Materials | Repaired Imp. Carbon-fiber Leg 4904 | -8/Materials | Build established: Mutant 4914 | -8/Materials | Garrison activated, responded to threat 5139 | -8/Materials | Identified exit to Garrison 5145 | -8/Materials | Entered Garrison 5155 | -8/Garrison | Installed Relay Interface Framework 5195 | -8/Garrison | Triggered checkpoint 5229 | -8/Garrison | Garrison Relay disabled 5284 | -8/Garrison | Build established: Scavenger-Mutant 5356 | -8/Garrison | Triggered checkpoint 5586 | -8/Garrison | Triggered checkpoint 5604 | -8/Garrison | Garrison Relay disabled 5669 | -8/Garrison | Discovered new exit (range 10) 5689 | -8/Garrison | Entered Materials 5908 | -8/Materials | Build established: Bothacker-Mutant 6241 | -8/Materials | Discovered new exit (range 16) 6271 | -8/Materials | Core integrity fell below 20% 6306 | -8/Materials | Lost 7 parts (2p2n1u2w) 6835 | -8/Materials | Discovered new exit (range 14) 6862 | -8/Materials | Entered Factory 6862 | -7/Factory | Accompanied by 1 ally 6862 | -7/Factory | Evolved 2 slots: Propulsion x1, Utility x1 6903 | -7/Factory | Build established: Mutant 7459 | -7/Factory | Build established: Scavenger-Mutant 8174 | -7/Factory | Discovered new exit (range 8) 8196 | -7/Factory | Identified exit to Factory 8574 | -7/Factory | Discovered new exit (range 6) 8599 | -7/Factory | Identified exit to Lower Caves 9600 | -7/Factory | Build established: Mutant 10862 | -7/Factory | First assault squad dispatched 10925 | -7/Factory | Entered Lower Caves 11496 | -7/Lower Caves | Spotted B-75 Beast 11593 | -7/Lower Caves | Discovered new exit (range 16) 11648 | -7/Lower Caves | Encountered a Warlord checkpoint 11725 | -7/Lower Caves | Identified exit to Lower Caves 11727 | -7/Lower Caves | Entered another Lower Caves area 11966 | -7/Lower Caves | Learned location of Zion (-6) 12206 | -7/Lower Caves | Build established: Scavenger-Mutant 12676 | -7/Lower Caves | Discovered new exit (range 5) 12685 | -7/Lower Caves | Identified exit to Data Miner 12688 | -7/Lower Caves | Entered Data Miner 12689 | -7/Data Miner | Discovered new exit (range 6) 12736 | -7/Data Miner | Met Data Miner 12777 | -7/Data Miner | Learned location of Section 7 (-2) 12777 | -7/Data Miner | Acquired the access code to Warlord's prototype stash 12821 | -7/Data Miner | Received God Mode back door access code from Data Miner 12905 | -7/Data Miner | Identified exit to Proximity Caves 12907 | -7/Data Miner | Entered Proximity Caves 12920 | -6/Proximity Caves | Learned 8 Factory zone layouts 13263 | -6/Proximity Caves | Learned location of 1 exit from Factory 13274 | -6/Proximity Caves | Escorted by Enhanced Grunt 13331 | -6/Proximity Caves | Attracted the attention of an 0b10 checkpoint 13736 | -6/Proximity Caves | Core integrity fell below 50% 13761 | -6/Proximity Caves | Lost 3 parts (2n1u) 13976 | -6/Proximity Caves | Discovered exit to Factory (range 10) 13998 | -6/Proximity Caves | Entered Factory 13998 | -6/Factory | Evolved 2 slots: Utility x2 13999 | -6/Factory | Identified exit to Factory 14019 | -6/Factory | Build established: Mutant 14304 | -6/Factory | Identified exit to DSF 14304 | -6/Factory | Entered DSF 14341 | -6/DSF | Additional patrols routed to DSF 14537 | -6/DSF | Discovered exit to Factory (range 14) 14629 | -6/DSF | Sterilization system engaged 14644 | -6/DSF | Entered Factory 14644 | -5/Factory | Evolved 2 slots: Utility x2 14660 | -5/Factory | Lost 3 parts (2u1w) 14912 | -5/Factory | Lost 5 parts (2n2u1w) 14921 | -5/Factory | Discovered new exit (range 15) 14939 | -5/Factory | Entered Upper Caves 15002 | -5/Upper Caves | Core integrity fell below 50% 15070 | -5/Upper Caves | Lost 6 parts (3n2u1w) 15130 | -5/Upper Caves | Spotted B-75 Beast 15167 | -5/Upper Caves | Attracted the attention of an 0b10 checkpoint 15314 | -5/Upper Caves | Lost 4 parts (1p1n1u1w) 15347 | -5/Upper Caves | Build established: Scavenger-Mutant 15380 | -5/Upper Caves | Core integrity fell below 20% 15401 | -5/Upper Caves | Learned Factory emergency access door positions 15453 | -5/Upper Caves | Destroyed by S-27 Virus with Autogun Last Messages --------------- 15237_ Acquired 49 matter. 15272_ Acquired 2 matter. 15275_ Acquired 25 matter. 15277_ Autogun destroyed. 15277_ Knocked back. 15277_ Arm. Huge Wheel destroyed. 15280_ Adv. Heat Sink destroyed. 15283_ Lgt. Nuclear Core destroyed. 15286_ Acquired 2 matter. 15379_ Imp. Treads destroyed. 15401_ Acquired derelict log, extracted data. Data stored: Factory emergency access points. 15410_ Acquired Wheel. 15412_ Acquired 4 matter. 15412_ Acquired 30 matter. 15417_ Acquired 11 matter. 15419_ Acquired Wheel. 15420_ Acquired 5 matter. 15421_ Acquired 1 matter. 15431_ Wheel destroyed. Map ----- +----------------------------------------------------+ | ????????## ##"" ##?????" #####" | | ?????????## ###"" ##??###### ### | | ??????????# ##?#### #### ### | | ??????????###?????## "# #?# | | ??????????????????# ### # | | ??????????????????## ### | | ???????????????????######" ## #?? | | ?????????????????????????#" #### #?? | | ?????????????###??????????# #??# #?? | | ?????????????# ?????????# ### #?? | | ??????????????# ????????# % ### ##?? | | ??????????????# ????????# ######??? | | ?????????????## ???????## #"## ##???????# | | ?????????????# #???????####??#### ##???###### | | ????????????## #???????????????####????# | | ?????? ### ##?????####????????????# | | ?????? ####### ##?####??????# ### | | ?????? #?# #??#####????? | | ?????? #?# ##?# ?????? | | ?????? #### ### #?# ??????# | | ??????? ## ##??## ! ## #?# #??????# | | ???????## ### #?###????# ### ###????# | | ????????##????# #########??# #????# | | ??????????????# ### #????# | | ??????????????# ######### #????# | | ?????????????????# @ ##?## ###### | | ?????????????????## sss### | | ??????????? ss ###### | | ??????????? #????? | | ??????????? ##### ### ### #???? | | ???????????? ??????### ##?## #?## #?? | | ??????????????????????# #???## #??# #? | | ??????????????????????### ##????# #??# # | | ????????????????????????# #????? #??# # | | ????????????????????????# #????? #??# ## ##### | | ????????????????????????# #????# #??# #? #???? | | ????????????????????????# #????## ??# #? #???? | | ???????????????????????? ?????# ??# ?? ???? | | ???????????????????????? %?????? ##?# ?? ???? | | ???????????????????????? ?????? #??##?? ???? | | ???????????????????????? ?????? ?????? ???? | | ????????????????????????# ??????? % ?????? ???? | | ??????????????????????????????????? ?????????????? | | ?????????????????????????????????????????????????? | | ?????????????????????????????????????????????????? | | ?????????????????????????????????????????????????? | | ?????????????????????????????????????????????????? | | ?????????????????????????????????????????????????? | | ?????????????????????????????????????????????????? | | ?????????????????????????????????????????????????? | +----------------------------------------------------+ Best States ------------- Heat Dissipation 59 Coolant Potential 65 Energy Generation 18 Energy Capacity 300 Matter Stores 300 Matter Capacity 300 Sight Range 18 Robot Scan Range 16 Terrain Scan Range 16 Terrain Scan Density 110 Corruption Containment 8 Armor Coverage 600 Resistance: KI 30 Resistance: TH 20 Core Shielding 20 Weapon Cycling 15 Phase Shifting 5 Evasion (%) 51 Recoil Reduction 5 Kinecelleration 30 Relay Coupler Types 1 Relay Coupler Value 31 Authchip Count 5 Item Schematics ----------------- Hcp. Storage Unit | -8/Materials | Scanalyzed Imp. Carbon-fiber Leg | -8/Materials | Scanalyzed Imp. Terrain Scan Processor | -8/Materials | Scanalyzed Combat Drone Bay | -7/Data Miner | Free Lgt. Regenerative Plating | -7/Data Miner | Free Biomechanical Wings | -7/Data Miner | Free Gravity Neutralizer | -7/Data Miner | Free Antimatter Cannon | -7/Data Miner | Free Hvy. Treads | -7/Data Miner | Free Recoil Nullifier | -7/Data Miner | Free Adv. Plasma Cannon | -7/Data Miner | Free Imp. Recalibrator | -7/Data Miner | Free Hyp. Gauss Cannon | -7/Data Miner | Free Impulse Thruster | -7/Data Miner | Free Field Propulsion Array | -7/Data Miner | Free Robot Schematics ------------------ R-10 Processor | -7/Data Miner | Free O-24 Administrator | -7/Data Miner | Free B-48 Gladiator | -7/Data Miner | Free G-50 Soldier | -7/Data Miner | Free B-60 Warrior | -7/Data Miner | Free Fabricated ------------ Nothing Alien Tech Used ----------------- None Achievements -------------- None Challenges ------------ None Game ------ Seed MomentumTeslaGun Manual? 0 Play Time 02:13:33 Cumulative 28.6 hours Start 2022.04.23 @ 22:51:27 End 2022.04.24 @ 01:10:34 Sessions 1 Manual Loads 0 Difficulty Rogue Special Mode None Game No. 19 Rogue 19 Adventurer 0 Explorer 0 Win Type - Total 0 Types 0/0/0/0/0/0/0/0/0 Lore% 12 Gallery% 32 Achievement% 67 Wizard Run 0 Options --------- ASCII 0 Keyboard 0 Movement Numpad Keybinds 0 Fullscreen 1 Font 24/Smallcaps Map View 76x50 Tactical HUD 1 Map Filters NONE Filters LOW_CONTRAST(47,30,31) Steam 1 RUN: 65256e03-1f71-44df-aa7a-ad62d51a4c28